[Event "URU-ch Semi Final 2020"]
[Site "Montevideo"]
[Date "2020.02.25"]
[Round "7.21"]
[White "Lanaro, Emilio"]
[Black "Blanco, Rudemar Ernesto"]
[Result "1-0"]
[ECO "B01"]
[WhiteElo "1670"]
[BlackElo "1470"]
[Annotator "NA RC"]
[PlyCount "55"]
[EventDate "2020.02.22"]
[EventType "swiss"]
[EventCountry "URU"]
[SourceTitle "playchess.com"]
[Source "ChessBase"]
[SourceQuality "1"]
[TimeControl "5400+30"]

1. e4 {[%emt 0:00:00]} d5 {[%emt 0:00:00]} 2. exd5 {[%emt 0:00:00]} Qxd5 {[%emt 0:00:05]} 3. Nc3 {[%emt 0:00:00]} Qd6 {[%emt 0:00:21]} 4. d4 {[%emt 0:00:36]} c6 {[%emt 0:00:19]} 5. Nf3 {[%emt 0:01:58]} Bg4 {[%emt 0:00:23]} 6. h3 {[%emt 0:03:07]} Bh5 {[%emt 0:02:04]} 7. Be2 {[%emt 0:07:22]} Nf6 {[%emt 0:01:06]} 8. Be3 {[%emt 0:01:29]} e6 {[%emt 0:00:24]} 9. Qd2 {[%emt 0:01:40]} Qc7 {[%emt 0:03:11]} 10. g4 {[%emt 0:08:02]} Bg6 {[%emt 0:00:34]} 11. Ne5 {[%emt 0:04:54]} Nbd7 {[%emt 0:04:19]} 12. f4 {[%emt 0:04:36]} Nxe5 {[%emt 0:06:46]} 13. fxe5 {[%emt 0:00:12]} Ne4 {[%emt 0:05:34]} 14. Nxe4 {[%emt 0:00:20]} Bxe4 {[%emt 0:00:07]} 15. Rg1 {[%emt 0:00:12]} O-O-O {[%emt 0:01:33]} 16. O-O-O {[%emt 0:04:38]} c5 {[%emt 0:01:40]} 17. Qc3 {[%emt 0:01:09]} cxd4 {[%emt 0:02:08]} 18. Qxc7+ {[%emt 0:00:11]} Kxc7 {[%emt 0:00:19]} 19. Rxd4 {[%emt 0:04:47]} Be7 {[%emt 0:02:14]} 20. Rxe4 {[%emt 0:00:44]} a6 {[%emt 0:01:13]} 21. Rc4+ {[%emt 0:08:17]} Kb8 {[%emt 0:00:12]} 22. Rd4 {[%emt 0:02:12]} Rxd4 {[%emt 0:00:39]} 23. Bxd4 {[%emt 0:00:10]} Bg5+ {[%emt 0:00:28]} 24. Kb1 {[%emt 0:00:24]} Rd8 {[%emt 0:00:26]} 25. Rd1 {[%emt 0:01:26]} Rc8 {[%emt 0:00:56]} 26. Bf3 {[%emt 0:06:55]} Rc7 {[%emt 0:01:41]} 27. Bb6 {[%emt 0:01:36]} Rc8 {[%emt 0:00:12]} 28. Rd7 {[%emt 0:02:32]} 1-0

[Event "URU-ch Semi Final 2020"]
[Site "Montevideo"]
[Date "2020.02.25"]
[Round "8.12"]
[White "Zaruski, Julio"]
[Black "Garcia, Matias"]
[Result "1-0"]
[ECO "A45"]
[WhiteElo "1822"]
[BlackElo "1810"]
[Annotator "NA"]
[PlyCount "95"]
[EventDate "2020.02.22"]
[EventType "swiss"]
[EventCountry "URU"]
[SourceTitle "playchess.com"]
[Source "ChessBase"]
[SourceQuality "1"]
[TimeControl "5400+30"]

{[%evp 9,95,4,5,9,14,13,39,28,43,13,48,0,0,0,0,-10,0,-6,0,0,9,10,7,4,8,2,22,30,22,10,12,-14,2,0,32767,-27,-4,0,207,41,281,148,424,272,263,276,295,279,258,224,241,200,222,207,250,158,158,47,139,122,370,427,387,427,442,307,326,349,364,392,411,419,506,432,32767,421,32767,32767,32767,32767,32767,32767,688,746,1684,6408,29987,29988]} 1. d4 {[%emt 0:00:44]} Nf6 {[%emt 0:00:00]} 2. Bf4 {[%emt 0:01:14]} e6 {[%emt 0:00:23]} 3. Nf3 {[%emt 0:00:36]} c5 {[%emt 0:00:45]} 4. c3 {[%emt 0:00:40]} b6 {[%emt 0:00:37]} 5. e3 {[%emt 0:00:44]} Bb7 {[%emt 0:00:08]} 6. Nbd2 {[%emt 0:02:03]} Nc6 {[%emt 0:03:05] A47: 1 d4 Nf6 2 Nf3 b6: Torre, London and Colle Systems.} 7. Bd3 {[%emt 0:03:26]} cxd4 {[%emt 0:01:08]} 8. exd4 {[%emt 0:00:15]} Be7 {[%emt 0:02:00]} 9. Qe2 {[%emt 0:00:47]} d6 {[%emt 0:02:24]} (9... Nh5 $5 {[%cal Rh5f4]} 10. Be3 O-O $11) 10. Ba6 {[%emt 0:00:49]} ({White should try} 10. h3 $14) 10... Bxa6 {[%emt 0:02:04]} 11. Qxa6 {[%emt 0:00:08]} O-O {[%emt 0:00:56] [#]} 12. h3 $146 {[%emt 0:00:53]} ({Predecessor:} 12. Qe2 Qd7 13. O-O Rac8 14. h3 Nd5 15. Bh2 Na5 16. c4 Nf6 17. Rfe1 d5 18. Ne5 {0-1 (37) Rogai,S (2015)-Boscolo,M (2129) Fermo 2010}) 12... Qd7 {[%emt 0:01:56]} 13. O-O {[%emt 0:00:17]} h6 {[%emt 0:02:25]} 14. Qd3 {[%emt 0:02:14]} Rad8 {[%emt 0:02:46]} 15. Bg3 {[%emt 0:00:22]} Rfe8 {[%emt 0:01:19]} 16. Rfe1 {[%emt 0:00:42]} Qb7 {[%emt 0:07:28]} 17. Ne4 {[%emt 0:01:55]} Nb8 {[%emt 0:04:19]} 18. Nxf6+ Bxf6 19. Qc2 {[%emt 0:03:17]} b5 {[%emt 0:02:14]} 20. Re3 {[%emt 0:00:36]} a5 {[%emt 0:01:00]} 21. Rae1 {[%emt 0:00:11]} Qb6 {[%emt 0:02:48]} 22. Bh4 {[%emt 0:03:40]} (22. d5 $5 e5 23. Nd4 $11 {[%mdl 64] Back Rank}) 22... Bxh4 {[%emt 0:04:49]} 23. Nxh4 {[%emt 0:00:14]} Rc8 $2 {[%emt 0:01:24] [#]} (23... d5 $11) 24. Qe2 {[%emt 0:03:54]} (24. d5 $1 $16 {[%cal Rd5e6]} Qd4 25. Qe4 (25. cxd4 Rxc2 26. Nf5 Rf8 $16) (25. dxe6 Qxh4 26. exf7+ {[%mdl 64] Discovered Attack} Kxf7 $16) 25... Qxe4 26. Rxe4) 24... b4 $2 {[%emt 0:03:44] [#]} (24... d5 $14) 25. Qg4 {[%emt 0:00:31]} (25. d5 $1 $18 {[%cal Rd5e6][%mdl 512] is the precise move to win.} e5 (25... exd5 26. Rxe8+) 26. Rg3) 25... Kh8 $2 {[%emt 0:02:44] [#]} (25... Qb5 $16) 26. Nf5 $1 {[%emt 0:02:30]} Rg8 {[%emt 0:04:11]} 27. Ne7 $1 {[%emt 0:00:13] Double Attack} bxc3 {[%emt 0:02:17]} 28. bxc3 {[%emt 0:00:14]} ({Resist} 28. Nxc8 Rxc8 29. Rxc3 Rxc3 $18) 28... Nd7 {[%emt 0:01:14]} 29. Nxg8 {[%emt 0:01:30]} ({Not} 29. Nxc8 Rxc8 $18 30. Rg3 Rg8 $16) 29... Rxg8 {[%emt 0:01:33]} 30. Qh5 {[%emt 0:04:16]} Rf8 {[%emt 0:01:13]} 31. Rf3 {[%emt 0:00:35]} Kg8 {[%emt 0:07:43]} 32. Kh2 {[%emt 0:04:59]} d5 {[%emt 0:03:38]} 33. Ree3 {[%emt 0:01:59]} ({White should try} 33. Qg4 $16) 33... Qd8 {[%emt 0:01:41]} (33... Qb8+ $1 $14 34. Rg3 Nf6) 34. Rg3 {[%emt 0:00:49]} Kh7 $2 {[%emt 0:01:11] [#]} (34... Kh8 $16 35. Qg4 Rg8) 35. Rxe6 $1 {[%emt 0:04:55]} Nf6 {[%emt 0:01:17]} 36. Qf5+ {[%emt 0:00:10]} Kh8 {[%emt 0:00:55]} 37. Re5 {[%emt 0:01:47]} Qd6 {[%emt 0:01:34]} 38. Kg1 {[%emt 0:03:22]} a4 {[%emt 0:00:41]} 39. Rge3 {[%emt 0:09:53]} a3 {[%emt 0:00:49]} 40. g4 {[%emt 0:01:06]} Rb8 {[%emt 0:02:21]} 41. Kg2 {[%emt 0:00:54]} g6 {[%emt 0:02:12]} 42. Qf4 {[%emt 0:05:05]} Kg7 {[%emt 0:00:01]} 43. c4 {[%emt 0:05:31]} Nd7 {[%emt 0:02:12]} 44. c5 {[%emt 0:00:52]} Qc7 {[%emt 0:00:19]} 45. Rf5 {[%emt 0:00:08]} Qxf4 {[%emt 0:03:15]} 46. Rxf4 {[%emt 0:03:16]} Rb4 {[%emt 0:00:43]} 47. c6 {[%emt 0:00:27]} Nb6 {[%emt 0:00:22]} 48. Re7 {[%emt 0:03:33]} 1-0

[Event "URU-ch Semi Final 2020"]
[Site "Montevideo"]
[Date "2020.02.25"]
[Round "8.13"]
[White "Davila Texeira, Mario"]
[Black "Belbey, Juan"]
[Result "1-0"]
[ECO "A81"]
[WhiteElo "1819"]
[BlackElo "1611"]
[Annotator "NA RC"]
[PlyCount "119"]
[EventDate "2020.02.22"]
[EventType "swiss"]
[EventCountry "URU"]
[SourceTitle "playchess.com"]
[Source "ChessBase"]
[SourceQuality "1"]
[TimeControl "5400+30"]

{[%evp 8,119,25,17,38,33,25,29,32767,32767,32767,32767,32767,48,62,47,52,28,20,7,53,-42,32,54,52,50,52,-41,-51,-63,-21,-104,-10,-18,-14,-18,0,-56,80,32767,32767,71,183,65,177,64,174,133,149,57,48,-291,44,-9,-50,-38,0,-57,32767,32767,210,38,328,302,323,348,476,500,599,700,1022,1411,1828,835,2045,1174,1090,689,683,479,703,32767,32767,32767,32767,32767,32767,32767,32767,32767,32767,32767,32767,32767,32767,32767,29984,29987,29987,29989,29987,29989,29991,29990,29990,29991,29992,29991,32767,32767,32767,32767,32767,29993]} 1. d4 {[%emt 0:00:00]} f5 {[%emt 0:00:00]} 2. g3 {[%emt 0:00:52]} d6 {[%emt 0:00:02]} 3. Bg2 {[%emt 0:00:06]} c6 {[%emt 0:00:06]} 4. c4 {[%emt 0:00:13]} g6 {[%emt 0:00:15]} 5. Nc3 {[%emt 0:00:06]} Nf6 {[%emt 0:00:08]} 6. b3 {[%emt 0:00:52] A81: Dutch Defence: 2 g3.} Bg7 {[%emt 0:00:20]} 7. Bb2 {[%emt 0:00:04] [#]} Nbd7 $146 {[%emt 0:00:19]} ({Predecessor:} 7... O-O 8. e3 e5 9. dxe5 dxe5 10. Qxd8 Rxd8 11. e4 f4 12. Nge2 fxg3 13. hxg3 Bg4 {1-0 (57) Pamperin,G (1898)-Schloesser,F (1819) Hamburg 2018}) 8. Nh3 {[%emt 0:00:13]} h6 {[%emt 0:00:27]} 9. Nf4 {[%emt 0:00:47]} Nf8 {[%emt 0:00:13]} 10. e3 {[%emt 0:04:52]} (10. d5 $16) 10... e5 {[%emt 0:00:20]} 11. Nfe2 {[%emt 0:01:29]} e4 {[%emt 0:00:42]} 12. d5 {[%emt 0:01:19]} c5 {[%emt 0:00:55]} 13. O-O {[%emt 0:00:19]} Qe7 {[%emt 0:00:27]} 14. a4 {[%emt 0:01:27]} ({White should try} 14. b4 $14) 14... N8d7 {[%emt 0:00:34]} ({Black should play} 14... g5 $15) 15. Nf4 {[%emt 0:00:44]} Ne5 {[%emt 0:00:23]} 16. Nb5 {[%emt 0:00:43]} Kf7 {[%emt 0:00:20]} 17. Ra2 {[%emt 0:08:04]} ({White should try} 17. Bxe5 $16 Qxe5 18. f3) 17... a6 {[%emt 0:00:16]} 18. Nc3 {[%emt 0:00:25]} g5 {[%emt 0:00:17]} 19. Nh5 {[%emt 0:00:27]} g4 {[%emt 0:00:22]} ({Black should try} 19... Nxh5 $17 20. Qxh5+ Kg8) 20. Nxg7 {[%emt 0:00:32]} Kxg7 {[%emt 0:00:09]} 21. Ne2 {[%emt 0:00:34]} h5 {[%emt 0:00:14]} 22. Nf4 {[%emt 0:05:39]} Nf3+ {[%emt 0:00:08]} (22... a5 $15 {keeps the upper hand.}) 23. Bxf3 {[%emt 0:00:16]} gxf3 {[%emt 0:00:06]} 24. h4 {[%emt 0:01:04]} Bd7 {[%emt 0:00:37]} (24... a5 $16) 25. Qa1 {[%emt 0:00:28]} ({White should play} 25. b4 $18) 25... Rh6 {[%emt 0:00:30]} ({Black should play} 25... a5 $14) 26. Rd1 {[%emt 0:01:21]} (26. b4 $18) 26... Rf8 {[%emt 0:00:20]} (26... a5 $16 {was called for.}) 27. Bc3 {[%emt 0:00:30]} Kh7 {[%emt 0:00:21]} 28. Rad2 {[%emt 0:00:54]} (28. b4 $16) 28... Rg8 {[%emt 0:00:14]} 29. Ne6 $2 {[%emt 0:04:01]} (29. a5 $16 {stays on course.}) 29... Rhg6 $2 {[%emt 0:00:32]} ({Black should try} 29... Ne8 $19 30. Nf4 Rg4) 30. Bxf6 {[%emt 0:05:20]} Rxf6 {[%emt 0:00:12]} 31. Nf4 {[%emt 0:01:38]} Rg4 {[%emt 0:00:31]} 32. Rc2 {[%emt 0:01:21]} (32. Kh2 $11) 32... Be8 {[%emt 0:01:09]} 33. Kf1 {[%emt 0:00:20]} Qg7 $2 {[%emt 0:01:01] [#]} (33... a5 $14) 34. Ke1 $2 {[%emt 0:00:43]} ({White has to play} 34. a5 $1 $18) 34... b5 $2 {[%emt 0:00:37]} (34... a5 $1 $14) 35. axb5 {[%emt 0:00:07]} axb5 {[%emt 0:00:08]} 36. Ra2 {[%emt 0:00:11]} Rxf4 {[%emt 0:00:38]} 37. exf4 {[%emt 0:00:31]} e3 {[%emt 0:00:25]} 38. Ra7 {[%emt 0:00:15]} Bf7 {[%emt 0:00:15]} 39. cxb5 {[%emt 0:12:57]} e2 {[%emt 0:00:29]} 40. Rc1 {[%emt 0:00:14]} (40. Rd3 $142 Kg6 41. Rxf3) 40... Kh6 {[%emt 0:01:25]} 41. Qc3 {[%emt 0:01:07]} (41. b6 $142 Rg6 42. Qxg7+ Rxg7 43. b7 Rg8 44. Ra8 Bxd5 45. Rxg8 Bxb7 46. Rd8) 41... Kg6 {[%emt 0:01:13]} 42. Qxf3 {[%emt 0:04:37]} Qg8 {[%emt 0:00:27]} 43. Rc3 {[%emt 0:02:30]} Bxd5 {[%emt 0:00:15]} (43... Qb8 $142 44. Re7 Qxb5) 44. Qxe2 {[%emt 0:00:02]} Bxb3 {[%emt 0:00:25]} 45. Re3 {[%emt 0:01:38]} Qd5 {[%emt 0:01:49]} 46. Ree7 {[%emt 0:02:15]} Qh1+ {[%emt 0:00:26]} 47. Qf1 {[%emt 0:00:35]} Qxf1+ {[%emt 0:00:26]} 48. Kxf1 {[%emt 0:00:01]} Bf7 {[%emt 0:01:04]} 49. Rxf7 {[%emt 0:00:28]} Rxf7 {[%emt 0:00:14]} 50. Rxf7 {[%emt 0:00:02]} Kxf7 {[%emt 0:00:06]} 51. b6 {[%emt 0:00:03]} Ke6 {[%emt 0:00:11]} 52. b7 {[%emt 0:00:01]} Kd5 {[%emt 0:00:10]} 53. b8=Q c4 54. Qg8+ {[%emt 0:02:11]} Kd4 {[%emt 0:00:37]} 55. Qg7+ {[%emt 0:00:46]} Kd3 {[%emt 0:00:08] [#]} 56. Qf6 $1 {[%emt 0:00:38]} d5 {[%emt 0:00:21]} 57. Qxf5+ {[%emt 0:00:11]} Kd4 {[%emt 0:00:10]} 58. Qe5+ {[%emt 0:00:06]} Kc5 {[%emt 0:00:09]} 59. f5 {[%emt 0:00:04]} Kb4 {[%emt 0:00:07]} 60. Qxd5 {[%emt 0:00:06]} 1-0

[Event "URU-ch Semi Final 2020"]
[Site "Montevideo"]
[Date "2020.02.25"]
[Round "8.14"]
[White "Amaral, Francisco"]
[Black "Ramirez, Agustin"]
[Result "1/2-1/2"]
[ECO "A15"]
[WhiteElo "1567"]
[BlackElo "1715"]
[Annotator "NA RC"]
[PlyCount "47"]
[EventDate "2020.02.22"]
[EventType "swiss"]
[EventCountry "URU"]
[SourceTitle "playchess.com"]
[Source "ChessBase"]
[SourceQuality "1"]
[TimeControl "5400+30"]

1. c4 {[%emt 0:01:01]} Nf6 {[%emt 0:00:00]} 2. g3 {[%emt 0:01:00]} g6 {[%emt 0:00:00]} 3. Bg2 {[%emt 0:00:04]} Bg7 {[%emt 0:00:00]} 4. Nc3 {[%emt 0:00:54]} O-O 5. e3 d6 {[%emt 0:00:43]} 6. Nge2 {[%emt 0:00:45]} e5 {[%emt 0:00:46]} 7. O-O {[%emt 0:00:39]} Re8 {[%emt 0:01:30]} 8. d3 {[%emt 0:05:33]} Nc6 {[%emt 0:02:26]} 9. Rb1 {[%emt 0:02:38]} Nh5 {[%emt 0:03:23]} 10. b4 {[%emt 0:01:30]} f5 {[%emt 0:01:19]} 11. Nd5 {[%emt 0:05:49]} Ne7 {[%emt 0:02:09]} 12. f4 {[%emt 0:01:50]} c6 {[%emt 0:04:28]} 13. Nxe7+ {[%emt 0:02:14]} Qxe7 {[%emt 0:00:28]} 14. a4 {[%emt 0:02:30]} exf4 {[%emt 0:01:23]} 15. Nxf4 {[%emt 0:00:13]} Nxf4 {[%emt 0:00:09]} 16. exf4 {[%emt 0:00:54]} Bd7 {[%emt 0:01:35]} 17. Bd2 {[%emt 0:01:06]} Qf7 {[%emt 0:01:53]} 18. Qf3 {[%emt 0:03:23]} Re7 {[%emt 0:01:51]} 19. Rfe1 {[%emt 0:02:50]} Rae8 {[%emt 0:00:48]} 20. Rxe7 {[%emt 0:03:12]} Rxe7 {[%emt 0:00:24]} 21. Re1 {[%emt 0:00:33]} Bd4+ {[%emt 0:03:30]} 22. Kf1 {[%emt 0:00:26]} Rxe1+ {[%emt 0:00:41]} 23. Bxe1 {[%emt 0:01:55]} Qe7 {[%emt 0:03:22]} 24. Qe2 {[%emt 0:02:14]} 1/2-1/2

[Event "URU-ch Semi Final 2020"]
[Site "Montevideo"]
[Date "2020.02.25"]
[Round "8.15"]
[White "Torales, Agustin"]
[Black "Campora, Edgardo"]
[Result "1-0"]
[ECO "B06"]
[WhiteElo "1623"]
[BlackElo "1676"]
[Annotator "NA RC"]
[PlyCount "89"]
[EventDate "2020.02.22"]
[EventType "swiss"]
[EventCountry "URU"]
[SourceTitle "playchess.com"]
[Source "ChessBase"]
[SourceQuality "1"]
[TimeControl "5400+30"]

1. e4 {[%emt 0:00:00]} g6 {[%emt 0:00:38]} 2. d4 {[%emt 0:00:00]} Bg7 {[%emt 0:00:18]} 3. Nf3 {[%emt 0:00:10]} d6 {[%emt 0:00:16]} 4. Bd3 {[%emt 0:01:08]} a6 {[%emt 0:04:31]} 5. O-O {[%emt 0:02:41]} Nd7 {[%emt 0:00:42]} 6. Re1 {[%emt 0:02:14]} e5 {[%emt 0:01:03]} 7. c3 {[%emt 0:01:42]} Ne7 {[%emt 0:10:51]} 8. Bc2 {[%emt 0:04:42]} c5 {[%emt 0:03:03]} 9. dxe5 {[%emt 0:04:54]} dxe5 {[%emt 0:00:33]} 10. Nbd2 {[%emt 0:02:04]} O-O {[%emt 0:00:28]} 11. Nc4 {[%emt 0:01:10]} b5 {[%emt 0:02:44]} 12. Nd6 {[%emt 0:00:59]} Qc7 {[%emt 0:00:27]} 13. Be3 {[%emt 0:06:35]} Nb6 {[%emt 0:04:30]} 14. Nxc8 {[%emt 0:00:45]} Raxc8 {[%emt 0:00:33]} 15. a4 {[%emt 0:03:58]} Nc4 {[%emt 0:05:44]} 16. axb5 {[%emt 0:00:18]} Nxe3 {[%emt 0:00:17]} 17. Rxe3 {[%emt 0:00:14]} axb5 {[%emt 0:00:15]} 18. Rd3 {[%emt 0:04:31]} Rfd8 {[%emt 0:01:17]} 19. Rxd8+ {[%emt 0:01:15]} Rxd8 {[%emt 0:00:10]} 20. Qe2 {[%emt 0:00:04]} Rb8 {[%emt 0:06:14]} 21. g3 {[%emt 0:08:38]} b4 {[%emt 0:08:34]} 22. Qc4 {[%emt 0:01:32]} Nc8 {[%emt 0:14:25]} 23. Rd1 {[%emt 0:07:57]} Nd6 {[%emt 0:01:47]} 24. Qd5 {[%emt 0:00:17]} Rd8 {[%emt 0:00:23]} 25. cxb4 {[%emt 0:02:06]} cxb4 {[%emt 0:00:41]} 26. Qb3 {[%emt 0:00:41]} Rb8 {[%emt 0:10:17]} 27. Rd5 {[%emt 0:03:52]} Nb5 {[%emt 0:05:56]} 28. Kg2 h6 29. Bd3 {[%emt 0:09:29]} Na7 {[%emt 0:13:14]} 30. Qc4 {[%emt 0:01:53]} Qxc4 {[%emt 0:00:40]} 31. Bxc4 {[%emt 0:00:02]} Nc6 {[%emt 0:01:11]} 32. Rd7 {[%emt 0:01:15]} Nd8 {[%emt 0:00:28]} 33. Nh4 {[%emt 0:00:43]} Kf8 {[%emt 0:00:36]} 34. b3 {[%emt 0:01:12]} Bf6 {[%emt 0:00:07]} 35. Nf3 {[%emt 0:00:44]} Rb7 {[%emt 0:00:13]} 36. Rd5 {[%emt 0:00:40]} Ke7 {[%emt 0:02:38]} 37. Nxe5 {[%emt 0:01:11]} Bxe5 {[%emt 0:00:07]} 38. Rxe5+ {[%emt 0:00:05]} Kf6 {[%emt 0:00:04]} 39. f4 {[%emt 0:01:01]} Nc6 {[%emt 0:01:19]} 40. Rd5 {[%emt 0:00:54]} Ke7 {[%emt 0:00:53]} 41. Kf3 {[%emt 0:02:41]} Na7 {[%emt 0:00:06]} 42. e5 {[%emt 0:01:33]} Nc8 {[%emt 0:00:23]} 43. Ke4 {[%emt 0:00:34]} f5+ {[%emt 0:01:29]} 44. exf6+ {[%emt 0:00:59]} Kxf6 {[%emt 0:00:03]} 45. Ba6 {[%emt 0:01:59]} 1-0

[Event "URU-ch Semi Final 2020"]
[Site "Montevideo"]
[Date "2020.02.25"]
[Round "8.16"]
[White "Cayetano, Juan"]
[Black "Larrea, Daniela"]
[Result "1-0"]
[ECO "B20"]
[WhiteElo "1543"]
[BlackElo "1757"]
[Annotator "NA RC"]
[PlyCount "77"]
[EventDate "2020.02.22"]
[EventType "swiss"]
[EventCountry "URU"]
[SourceTitle "playchess.com"]
[Source "ChessBase"]
[SourceQuality "1"]
[TimeControl "5400+30"]

1. e4 {[%emt 0:00:00]} c5 {[%emt 0:08:19]} 2. Bc4 {[%emt 0:00:00]} e6 {[%emt 0:00:21]} 3. c3 {[%emt 0:00:12]} Nf6 {[%emt 0:00:46]} 4. e5 Nd5 {[%emt 0:00:39]} 5. d4 {[%emt 0:01:55]} Nb6 {[%emt 0:01:27]} 6. Bb3 {[%emt 0:00:26]} c4 {[%emt 0:00:50]} 7. Bc2 {[%emt 0:00:09]} d6 {[%emt 0:02:42]} 8. Nf3 {[%emt 0:00:23]} Nc6 {[%emt 0:00:08]} 9. O-O Be7 {[%emt 0:00:00]} 10. Qe2 {[%emt 0:02:00]} O-O 11. exd6 {[%emt 0:02:37]} Bxd6 {[%emt 0:01:29]} 12. Ne5 {[%emt 0:00:30]} Qc7 {[%emt 0:04:41]} 13. f4 {[%emt 0:01:04]} g6 {[%emt 0:03:45]} 14. Be3 {[%emt 0:01:08]} Ne7 {[%emt 0:01:19]} 15. Nd2 {[%emt 0:00:52]} Ned5 {[%emt 0:01:11]} 16. g3 {[%emt 0:02:33]} Nxe3 {[%emt 0:01:23]} 17. Qxe3 {[%emt 0:00:10]} Nd5 {[%emt 0:00:08]} 18. Qe2 {[%emt 0:00:41]} b5 {[%emt 0:01:00]} 19. a4 {[%emt 0:01:41]} b4 {[%emt 0:00:17]} 20. Qxc4 {[%emt 0:01:03]} bxc3 {[%emt 0:00:21]} 21. Qxc7 {[%emt 0:01:30]} Bxc7 {[%emt 0:00:13]} 22. bxc3 {[%emt 0:00:40]} Nxc3 {[%emt 0:01:04]} 23. Rfe1 {[%emt 0:01:19]} Ba6 {[%emt 0:04:59]} 24. Ndf3 {[%emt 0:02:13]} Bd6 {[%emt 0:15:16]} 25. Bd3 {[%emt 0:01:30]} Bxd3 {[%emt 0:01:39]} 26. Nxd3 {[%emt 0:00:10]} a5 {[%emt 0:00:12]} 27. Nde5 {[%emt 0:03:15]} Bb4 {[%emt 0:09:56]} 28. Re3 {[%emt 0:00:40]} Rfc8 {[%emt 0:04:18]} 29. Nd3 {[%emt 0:02:18]} Nd5 {[%emt 0:01:48]} 30. Re2 {[%emt 0:00:29]} Bd6 {[%emt 0:02:49]} 31. Nde5 {[%emt 0:03:20]} Rab8 {[%emt 0:02:15]} 32. Kf2 {[%emt 0:01:41]} Nc3 {[%emt 0:05:53]} 33. Ree1 {[%emt 0:02:11]} Rb2+ {[%emt 0:04:30]} 34. Kg1 {[%emt 0:00:43]} Rcb8 {[%emt 0:05:32]} 35. Nc4 {[%emt 0:00:40]} Ne2+ {[%emt 0:10:04]} 36. Kf1 {[%emt 0:00:50]} Nxd4 {[%emt 0:02:20]} 37. Nxd4 {[%emt 0:01:10]} Bc5 {[%emt 0:00:59]} 38. Nxb2 {[%emt 0:01:04]} Bxd4 {[%emt 0:00:12]} 39. Nc4 {[%emt 0:01:22]} 1-0

[Event "URU-ch Semi Final 2020"]
[Site "Montevideo"]
[Date "2020.02.25"]
[Round "8.17"]
[White "Ruggiero, Alvaro"]
[Black "Rey, Fernando"]
[Result "1/2-1/2"]
[ECO "C01"]
[WhiteElo "1843"]
[BlackElo "1640"]
[Annotator "NA RC"]
[PlyCount "32"]
[EventDate "2020.02.22"]
[EventType "swiss"]
[EventCountry "URU"]
[SourceTitle "playchess.com"]
[Source "ChessBase"]
[SourceQuality "1"]
[TimeControl "5400+30"]

1. e4 {[%emt 0:00:00]} e6 {[%emt 0:02:21]} 2. d4 {[%emt 0:00:00]} d5 {[%emt 0:00:13]} 3. exd5 {[%emt 0:00:04]} exd5 {[%emt 0:00:08]} 4. Bd3 {[%emt 0:00:11]} Bd6 {[%emt 0:00:08]} 5. Nf3 {[%emt 0:00:11]} Nc6 {[%emt 0:00:16]} 6. O-O {[%emt 0:00:19]} Nge7 {[%emt 0:00:19]} 7. c3 {[%emt 0:00:24]} Bg4 {[%emt 0:00:18]} 8. Re1 {[%emt 0:00:22]} f6 9. Bg5 $19 (9. Nbd2 $11 {and White has nothing to worry.}) 9... Qd7 10. Be3 O-O-O 11. b4 Na5 12. a4 Nac6 13. a5 Ng6 14. b5 Nce7 15. Qa4 a6 16. b6 h6 1/2-1/2